{"text_format":"1","workbook":"xlsx","n_sheets":6,"sheets":["Dashboard","Ayuda y Version","pBlock","pAccel0","pAccel1","empresa_ccaa"],"not_rendered":{"charts":12,"images":7,"macros":1,"external_links":0,"defined_names":6,"comments":0,"pivot_tables":0},"unopened":[],"bounds":{"document_bytes":16777216,"sheet_cells":100000,"rows_first":2000,"rows_last":500,"rows_between":2000,"halvings":0,"cell_chars":16384,"cell_head_chars":4096},"cells_cut":0,"cells_raw":0,"read":"whole","date_system":"1900"}

{"sheet":"Dashboard","index":0,"n_rows":49,"n_cols":354,"rows_kept":49,"cut":false,"hidden":false,"merged":[]}
[]
[]
[null,null,null,null,null,null,null,null,null,null,null,null,null,null,2018]
[null,null,null,null,null,null,null,null,null,null,null,null,null,null,"FEBRERO",null,null,null,null,null,null,null,null,null,null,null,null,null,null,null,null,null,null,null,null,null,null,null,null,null,null,null,null,null,null,null,null,null,null,null,null,null,null,null,null,null,null,null,null,null,null,null,null,null,null,null,null,null,null,null,null,null,null,null,null,null,null,null,null,null,null,null,null,null,null,null,null,null,null,null,null,null,null,null,null,null,null,null,null,null,null,null,null,null,null,null,null,null,null,null,null,null,null,null,null,null,null,null,null,null,null,null,null,null,null,null,null,null,null,null,null,null,null,null,null,null,null,null,null,null,null,null,null,null,null,null,null,null,null,null,null,null,null,null,null,null,null,null,null,null,null,null,null,null,null,null,null,null,null,null,null,null,null,null,null,null,null,null,null,null,null,null,null,null,null,null,null,null,null,null,null,null,null,null,null,null,null,null,null,null,null,null,null,null,null,null,null,null,null,null,null,null,null,null,null,null,null,null,null,null,null,null,null,null,null,null,null,null,null,null,null,null,null,null,null,null,null,null,null,null,null,null,null,null,null,null,null,null,null,null,null,null,null,null,null,null,null,null,null,null,null,null,null,null,null,null,null,null,null,null,null,null,null,null,null,null,null,null,null,null,null,null,null,null,null,null,null,null,null,null,null,null,null,null,null,null,null,null,null,null,null,null,null,null,null,null,null,null,null,null,null,null,null,null,null,null,null,null,null,null,null,null,null,null,null,null,null,null,null,null,null,null,null,null,null,null,null,null,null,null,null,null,null,null,null,null,"Empresa - Sector","Empresa - Sector"]
[null,null,"Acumulado a:",{"$f":"O4","v":"FEBRERO"},null,null,"Datos acumulados",null,"Cuota Negocio / Total ASEMPLEO",null,null,{"$f":"empresa_ccaa!L5","v":"iEMPRESA"},null,"¿▲\"sin\" mi Empresa?",null,null,null,null,null,null,null,null,null,null,null,null,null,null,null,null,null,null,null,null,null,null,null,null,null,null,null,null,null,null,null,null,null,null,null,null,null,null,null,null,null,null,null,null,null,null,null,null,null,null,null,null,null,null,null,null,null,null,null,null,null,null,null,null,null,null,null,null,null,null,null,null,null,null,null,null,null,null,null,null,null,null,null,null,null,null,null,null,null,null,null,null,null,null,null,null,null,null,null,null,null,null,null,null,null,null,null,null,null,null,null,null,null,null,null,null,null,null,null,null,null,null,null,null,null,null,null,null,null,null,null,null,null,null,null,null,null,null,null,null,null,null,null,null,null,null,null,null,null,null,null,null,null,null,null,null,null,null,null,null,null,null,null,null,null,null,null,null,null,null,null,null,null,null,null,null,null,null,null,null,null,null,null,null,null,null,null,null,null,null,null,null,null,null,null,null,null,null,null,null,null,null,null,null,null,null,null,null,null,null,null,null,null,null,null,null,null,null,null,null,null,null,null,null,null,null,null,null,null,null,null,null,null,null,null,null,null,null,null,null,null,null,null,null,null,null,null,null,null,null,null,null,null,null,null,null,null,null,null,null,null,null,null,null,null,null,null,null,null,null,null,null,null,null,null,null,null,null,null,null,null,null,null,null,null,null,null,null,null,null,null,null,null,null,null,null,null,null,null,null,null,null,null,null,null,null,null,null,null,null,null,null,null,null,null,null,null,null,null,null,null,null,null,null,null,null,null,null,null,null,null,null,null,"p.p."]
[null,null,"Total","Facturación, €",null,"(a)",{"$f":"L5","v":"iEMPRESA"},null,null,null,"Cuota de Facturación","∆",null,"(b)","∆ (a-b)",null,null,null,null,null,null,null,null,null,null,null,null,null,null,null,null,null,null,null,null,null,null,null,null,null,null,null,null,null,null,null,null,null,null,null,null,null,null,null,null,null,null,null,null,null,null,null,null,null,null,null,null,null,null,null,null,null,null,null,null,null,null,null,null,null,null,null,null,null,null,null,null,null,null,null,null,null,null,null,null,null,null,null,null,null,null,null,null,null,null,null,null,null,null,null,null,null,null,null,null,null,null,null,null,null,null,null,null,null,null,null,null,null,null,null,null,null,null,null,null,null,null,null,null,null,null,null,null,null,null,null,null,null,null,null,null,null,null,null,null,null,null,null,null,null,null,null,null,null,null,null,null,null,null,null,null,null,null,null,null,null,null,null,null,null,null,null,null,null,null,null,null,null,null,null,null,null,null,null,null,null,null,null,null,null,null,null,null,null,null,null,null,null,null,null,null,null,null,null,null,null,null,null,null,null,null,null,null,null,null,null,null,null,null,null,null,null,null,null,null,null,null,null,null,null,null,null,null,null,null,null,null,null,null,null,null,null,null,null,null,null,null,null,null,null,null,null,null,null,null,null,null,null,null,null,null,null,null,null,null,null,null,null,null,null,null,null,null,null,null,null,null,null,null,null,null,null,null,null,null,null,null,null,null,null,null,null,null,null,null,null,null,null,null,null,null,null,null,null,null,null,null,null,null,null,null,null,null,null,null,null,null,null,null,null,null,null,null,null,null,null,null,null,null,null,null,null,null,null,null,null,null,"Puntos porcentuales"]
[null,null,null,2017,2018,"% i.a.",{"$f":"D7","v":2017},{"$f":"E7","v":2018},"% i.a.",{"$f":"G7","v":2017},{"$f":"H7","v":2018},"Dif.P.P.",null,"% i.a.","Dif.P.P.",null,null,null,null,null,null,null,null,null,null,null,null,null,null,null,null,null,null,null,null,null,null,null,null,null,null,null,null,null,null,null,null,null,null,null,null,null,null,null,null,null,null,null,null,null,null,null,null,null,null,null,null,null,null,null,null,null,null,null,null,null,null,null,null,null,null,null,null,null,null,null,null,null,null,null,null,null,null,null,null,null,null,null,null,null,null,null,null,null,null,null,null,null,null,null,null,null,null,null,null,null,null,null,null,null,null,null,null,null,null,null,null,null,null,null,null,null,null,null,null,null,null,null,null,null,null,null,null,null,null,null,null,null,null,null,null,null,null,null,null,null,null,null,null,null,null,null,null,null,null,null,null,null,null,null,null,null,null,null,null,null,null,null,null,null,null,null,null,null,null,null,null,null,null,null,null,null,null,null,null,null,null,null,null,null,null,null,null,null,null,null,null,null,null,null,null,null,null,null,null,null,null,null,null,null,null,null,null,null,null,null,null,null,null,null,null,null,null,null,null,null,null,null,null,null,null,null,null,null,null,null,null,null,null,null,null,null,null,null,null,null,null,null,null,null,null,null,null,null,null,null,null,null,null,null,null,null,null,null,null,null,null,null,null,null,null,null,null,null,null,null,null,null,null,null,null,null,null,null,null,null,null,null,null,null,null,null,null,null,null,null,null,null,null,null,null,null,null,null,null,null,null,null,null,null,null,null,null,null,null,null,null,null,null,null,null,null,null,null,null,null,null,null,null,null,null,null,null,null,null,null,"Dif. Ritmo","Importancia Relativa",null,null,"Empresa"]
[null,null,"Nacional",{"$f":"empresa_ccaa!F12","v":513947203.63970006},{"$f":"empresa_ccaa!G12","v":604036392.36808932},{"$f":"((E8/D8)-1)","v":0.1752888002705153},{"$f":"empresa_ccaa!K12","v":0},{"$f":"empresa_ccaa!L12","v":0},{"$f":"IF(G8>0,((H8/G8)-1),\"n.a.\")","v":"n.a."},{"$f":"G8/D8","v":0},{"$f":"H8/E8","v":0},{"$f":"(K8-J8)*100","v":0},null,{"$f":"((E8-H8)/(D8-G8))-1","v":0.1752888002705153},{"$f":"(F8-N8)*100","v":0},null,null,null,null,null,null,null,null,null,null,null,null,null,null,null,null,null,null,null,null,null,null,null,null,null,null,null,null,null,null,null,null,null,null,null,null,null,null,null,null,null,null,null,null,null,null,null,null,null,null,null,null,null,null,null,null,null,null,null,null,null,null,null,null,null,null,null,null,null,null,null,null,null,null,null,null,null,null,null,null,null,null,null,null,null,null,null,null,null,null,null,null,null,null,null,null,null,null,null,null,null,null,null,null,null,null,null,null,null,null,null,null,null,null,null,null,null,null,null,null,null,null,null,null,null,null,null,null,null,null,null,null,null,null,null,null,null,null,null,null,null,null,null,null,null,null,null,null,null,null,null,null,null,null,null,null,null,null,null,null,null,null,null,null,null,null,null,null,null,null,null,null,null,null,null,null,null,null,null,null,null,null,null,null,null,null,null,null,null,null,null,null,null,null,null,null,null,null,null,null,null,null,null,null,null,null,null,null,null,null,null,null,null,null,null,null,null,null,null,null,null,null,null,null,null,null,null,null,null,null,null,null,null,null,null,null,null,null,null,null,null,null,null,null,null,null,null,null,null,null,null,null,null,null,null,null,null,null,null,null,null,null,null,null,null,null,null,null,null,null,null,null,null,null,null,null,null,null,null,null,null,null,null,null,null,null,null,null,null,null,null,null,null,null,null,null,null,null,null,null,null,null,null,null,null,null,null,null,null,null,null,null,null,null,null,null,null,null,null,null,null,null,null,null,null,null,null,null,null,null,null,{"$f":"IF(I8=\"n.a.\",\"n.a.\",(I8-F8)*100)","v":"n.a."},{"$f":"empresa_ccaa!M12-empresa_ccaa!H12","v":{"$error":"#DIV/0!"}},null,"criterio_rank","peso","Comunidad","% i.a.","Total_Regional"]
[null,null,"ANDALUCIA",{"$f":"empresa_ccaa!F13","v":46198442.654068381},{"$f":"empresa_ccaa!G13","v":53565309.593900397},{"$f":"((E9/D9)-1)","v":0.15946136961790569},{"$f":"empresa_ccaa!K13","v":0},{"$f":"empresa_ccaa!L13","v":0},"n.a.",0,0,{"$f":"(K9-J9)*100","v":0},null,{"$f":"((E9-H9)/(D9-G9))-1","v":0.15946136961790569},0,null,null,null,null,null,null,null,null,null,null,null,null,null,null,null,null,null,null,null,null,null,null,null,null,null,null,null,null,null,null,null,null,null,null,null,null,null,null,null,null,null,null,null,null,null,null,null,null,null,null,null,null,null,null,null,null,null,null,null,null,null,null,null,null,null,null,null,null,null,null,null,null,null,null,null,null,null,null,null,null,null,null,null,null,null,null,null,null,null,null,null,null,null,null,null,null,null,null,null,null,null,null,null,null,null,null,null,null,null,null,null,null,null,null,null,null,null,null,null,null,null,null,null,null,null,null,null,null,null,null,null,null,null,null,null,null,null,null,null,null,null,null,null,null,null,null,null,null,null,null,null,null,null,null,null,null,null,null,null,null,null,null,null,null,null,null,null,null,null,null,null,null,null,null,null,null,null,null,null,null,null,null,null,null,null,null,null,null,null,null,null,null,null,null,null,null,null,null,null,null,null,null,null,null,null,null,null,null,null,null,null,null,null,null,null,null,null,null,null,null,null,null,null,null,null,null,null,null,null,null,null,null,null,null,null,null,null,null,null,null,null,null,null,null,null,null,null,null,null,null,null,null,null,null,null,null,null,null,null,null,null,null,null,null,null,null,null,null,null,null,null,null,null,null,null,null,null,null,null,null,null,null,null,null,null,null,null,null,null,null,null,null,null,null,null,null,null,null,null,null,null,null,null,null,null,null,null,null,null,null,null,null,null,null,null,null,null,null,null,null,null,null,null,null,null,null,null,null,null,null,null,"n.a.",{"$f":"empresa_ccaa!M13-empresa_ccaa!H13","v":{"$error":"#DIV/0!"}},null,{"$f":"IF(MM9=$MM$27,1,0)","v":1},{"$f":"K9","v":0},{"$f":"C9","v":"ANDALUCIA"},{"$f":"I9","v":"n.a."},{"$f":"F9","v":0.15946136961790569}]
[null,null,"ARAGON",{"$f":"empresa_ccaa!F14","v":27072518.970105276},{"$f":"empresa_ccaa!G14","v":31027028.116750933},{"$f":"((E10/D10)-1)","v":0.14607097149003412},{"$f":"empresa_ccaa!K14","v":0},{"$f":"empresa_ccaa!L14","v":0},"n.a.",0,0,0,null,0.14607097149003412,0,null,null,null,null,null,null,null,null,null,null,null,null,null,null,null,null,null,null,null,null,null,null,null,null,null,null,null,null,null,null,null,null,null,null,null,null,null,null,null,null,null,null,null,null,null,null,null,null,null,null,null,null,null,null,null,null,null,null,null,null,null,null,null,null,null,null,null,null,null,null,null,null,null,null,null,null,null,null,null,null,null,null,null,null,null,null,null,null,null,null,null,null,null,null,null,null,null,null,null,null,null,null,null,null,null,null,null,null,null,null,null,null,null,null,null,null,null,null,null,null,null,null,null,null,null,null,null,null,null,null,null,null,null,null,null,null,null,null,null,null,null,null,null,null,null,null,null,null,null,null,null,null,null,null,null,null,null,null,null,null,null,null,null,null,null,null,null,null,null,null,null,null,null,null,null,null,null,null,null,null,null,null,null,null,null,null,null,null,null,null,null,null,null,null,null,null,null,null,null,null,null,null,null,null,null,null,null,null,null,null,null,null,null,null,null,null,null,null,null,null,null,null,null,null,null,null,null,null,null,null,null,null,null,null,null,null,null,null,null,null,null,null,null,null,null,null,null,null,null,null,null,null,null,null,null,null,null,null,null,null,null,null,null,null,null,null,null,null,null,null,null,null,null,null,null,null,null,null,null,null,null,null,null,null,null,null,null,null,null,null,null,null,null,null,null,null,null,null,null,null,null,null,null,null,null,null,null,null,null,null,null,null,null,null,null,null,null,null,null,null,null,null,null,null,null,null,null,null,null,null,null,"n.a.",{"$f":"empresa_ccaa!M14-empresa_ccaa!H14","v":{"$error":"#DIV/0!"}},null,1,0,"ARAGON","n.a.",0.14607097149003412]
[null,null,"ASTURIAS",{"$f":"empresa_ccaa!F15","v":9915573.5644523874},{"$f":"empresa_ccaa!G15","v":12281317.775951065},0.23858874084500137,{"$f":"empresa_ccaa!K15","v":0},{"$f":"empresa_ccaa!L15","v":0},"n.a.",0,0,0,null,0.23858874084500137,0,null,null,null,null,null,null,null,null,null,null,null,null,null,null,null,null,null,null,null,null,null,null,null,null,null,null,null,null,null,null,null,null,null,null,null,null,null,null,null,null,null,null,null,null,null,null,null,null,null,null,null,null,null,null,null,null,null,null,null,null,null,null,null,null,null,null,null,null,null,null,null,null,null,null,null,null,null,null,null,null,null,null,null,null,null,null,null,null,null,null,null,null,null,null,null,null,null,null,null,null,null,null,null,null,null,null,null,null,null,null,null,null,null,null,null,null,null,null,null,null,null,null,null,null,null,null,null,null,null,null,null,null,null,null,null,null,null,null,null,null,null,null,null,null,null,null,null,null,null,null,null,null,null,null,null,null,null,null,null,null,null,null,null,null,null,null,null,null,null,null,null,null,null,null,null,null,null,null,null,null,null,null,null,null,null,null,null,null,null,null,null,null,null,null,null,null,null,null,null,null,null,null,null,null,null,null,null,null,null,null,null,null,null,null,null,null,null,null,null,null,null,null,null,null,null,null,null,null,null,null,null,null,null,null,null,null,null,null,null,null,null,null,null,null,null,null,null,null,null,null,null,null,null,null,null,null,null,null,null,null,null,null,null,null,null,null,null,null,null,null,null,null,null,null,null,null,null,null,null,null,null,null,null,null,null,null,null,null,null,null,null,null,null,null,null,null,null,null,null,null,null,null,null,null,null,null,null,null,null,null,null,null,null,null,null,null,null,null,null,null,null,null,null,null,null,null,null,null,null,null,null,"n.a.",{"$f":"empresa_ccaa!M15-empresa_ccaa!H15","v":{"$error":"#DIV/0!"}},null,1,0,"ASTURIAS","n.a.",0.23858874084500137]
[null,null,"BALEARES",{"$f":"empresa_ccaa!F16","v":1661116.4989853087},{"$f":"empresa_ccaa!G16","v":1833000.8856896563},0.10347521489874012,{"$f":"empresa_ccaa!K16","v":0},{"$f":"empresa_ccaa!L16","v":0},"n.a.",0,0,0,null,0.10347521489874012,0,null,null,null,null,null,null,null,null,null,null,null,null,null,null,null,null,null,null,null,null,null,null,null,null,null,null,null,null,null,null,null,null,null,null,null,null,null,null,null,null,null,null,null,null,null,null,null,null,null,null,null,null,null,null,null,null,null,null,null,null,null,null,null,null,null,null,null,null,null,null,null,null,null,null,null,null,null,null,null,null,null,null,null,null,null,null,null,null,null,null,null,null,null,null,null,null,null,null,null,null,null,null,null,null,null,null,null,null,null,null,null,null,null,null,null,null,null,null,null,null,null,null,null,null,null,null,null,null,null,null,null,null,null,null,null,null,null,null,null,null,null,null,null,null,null,null,null,null,null,null,null,null,null,null,null,null,null,null,null,null,null,null,null,null,null,null,null,null,null,null,null,null,null,null,null,null,null,null,null,null,null,null,null,null,null,null,null,null,null,null,null,null,null,null,null,null,null,null,null,null,null,null,null,null,null,null,null,null,null,null,null,null,null,null,null,null,null,null,null,null,null,null,null,null,null,null,null,null,null,null,null,null,null,null,null,null,null,null,null,null,null,null,null,null,null,null,null,null,null,null,null,null,null,null,null,null,null,null,null,null,null,null,null,null,null,null,null,null,null,null,null,null,null,null,null,null,null,null,null,null,null,null,null,null,null,null,null,null,null,null,null,null,null,null,null,null,null,null,null,null,null,null,null,null,null,null,null,null,null,null,null,null,null,null,null,null,null,null,null,null,null,null,null,null,null,null,null,null,null,null,null,"n.a.",{"$f":"empresa_ccaa!M16-empresa_ccaa!H16","v":{"$error":"#DIV/0!"}},null,1,0,"BALEARES","n.a.",0.10347521489874012]
[null,null,"CANARIAS",{"$f":"empresa_ccaa!F17","v":14112695.619959144},{"$f":"empresa_ccaa!G17","v":15144463.612136569},7.3109207479698401E-2,{"$f":"empresa_ccaa!K17","v":0},{"$f":"empresa_ccaa!L17","v":0},"n.a.",0,0,0,null,7.3109207479698401E-2,0,null,null,null,null,null,null,null,null,null,null,null,null,null,null,null,null,null,null,null,null,null,null,null,null,null,null,null,null,null,null,null,null,null,null,null,null,null,null,null,null,null,null,null,null,null,null,null,null,null,null,null,null,null,null,null,null,null,null,null,null,null,null,null,null,null,null,null,null,null,null,null,null,null,null,null,null,null,null,null,null,null,null,null,null,null,null,null,null,null,null,null,null,null,null,null,null,null,null,null,null,null,null,null,null,null,null,null,null,null,null,null,null,null,null,null,null,null,null,null,null,null,null,null,null,null,null,null,null,null,null,null,null,null,null,null,null,null,null,null,null,null,null,null,null,null,null,null,null,null,null,null,null,null,null,null,null,null,null,null,null,null,null,null,null,null,null,null,null,null,null,null,null,null,null,null,null,null,null,null,null,null,null,null,null,null,null,null,null,null,null,null,null,null,null,null,null,null,null,null,null,null,null,null,null,null,null,null,null,null,null,null,null,null,null,null,null,null,null,null,null,null,null,null,null,null,null,null,null,null,null,null,null,null,null,null,null,null,null,null,null,null,null,null,null,null,null,null,null,null,null,null,null,null,null,null,null,null,null,null,null,null,null,null,null,null,null,null,null,null,null,null,null,null,null,null,null,null,null,null,null,null,null,null,null,null,null,null,null,null,null,null,null,null,null,null,null,null,null,null,null,null,null,null,null,null,null,null,null,null,null,null,null,null,null,null,null,null,null,null,null,null,null,null,null,null,null,null,null,null,null,null,"n.a.",{"$f":"empresa_ccaa!M17-empresa_ccaa!H17","v":{"$error":"#DIV/0!"}},null,1,0,"CANARIAS","n.a.",7.3109207479698401E-2]
[null,null,"CANTABRIA",{"$f":"empresa_ccaa!F18","v":11215485.073114295},{"$f":"empresa_ccaa!G18","v":15130744.881031111},0.34909411250543743,{"$f":"empresa_ccaa!K18","v":0},{"$f":"empresa_ccaa!L18","v":0},"n.a.",0,0,0,null,0.34909411250543743,0,null,null,null,null,null,null,null,null,null,null,null,null,null,null,null,null,null,null,null,null,null,null,null,null,null,null,null,null,null,null,null,null,null,null,null,null,null,null,null,null,null,null,null,null,null,null,null,null,null,null,null,null,null,null,null,null,null,null,null,null,null,null,null,null,null,null,null,null,null,null,null,null,null,null,null,null,null,null,null,null,null,null,null,null,null,null,null,null,null,null,null,null,null,null,null,null,null,null,null,null,null,null,null,null,null,null,null,null,null,null,null,null,null,null,null,null,null,null,null,null,null,null,null,null,null,null,null,null,null,null,null,null,null,null,null,null,null,null,null,null,null,null,null,null,null,null,null,null,null,null,null,null,null,null,null,null,null,null,null,null,null,null,null,null,null,null,null,null,null,null,null,null,null,null,null,null,null,null,null,null,null,null,null,null,null,null,null,null,null,null,null,null,null,null,null,null,null,null,null,null,null,null,null,null,null,null,null,null,null,null,null,null,null,null,null,null,null,null,null,null,null,null,null,null,null,null,null,null,null,null,null,null,null,null,null,null,null,null,null,null,null,null,null,null,null,null,null,null,null,null,null,null,null,null,null,null,null,null,null,null,null,null,null,null,null,null,null,null,null,null,null,null,null,null,null,null,null,null,null,null,null,null,null,null,null,null,null,null,null,null,null,null,null,null,null,null,null,null,null,null,null,null,null,null,null,null,null,null,null,null,null,null,null,null,null,null,null,null,null,null,null,null,null,null,null,null,null,null,null,null,null,"n.a.",{"$f":"empresa_ccaa!M18-empresa_ccaa!H18","v":{"$error":"#DIV/0!"}},null,1,0,"CANTABRIA","n.a.",0.34909411250543743]
[null,null,"CASTILLA-LA MANCHA",{"$f":"empresa_ccaa!F19","v":21820291.758781873},{"$f":"empresa_ccaa!G19","v":26893670.627058245},0.23250738002779103,{"$f":"empresa_ccaa!K19","v":0},{"$f":"empresa_ccaa!L19","v":0},"n.a.",0,0,0,null,0.23250738002779103,0,null,null,null,null,null,null,null,null,null,null,null,null,null,null,null,null,null,null,null,null,null,null,null,null,null,null,null,null,null,null,null,null,null,null,null,null,null,null,null,null,null,null,null,null,null,null,null,null,null,null,null,null,null,null,null,null,null,null,null,null,null,null,null,null,null,null,null,null,null,null,null,null,null,null,null,null,null,null,null,null,null,null,null,null,null,null,null,null,null,null,null,null,null,null,null,null,null,null,null,null,null,null,null,null,null,null,null,null,null,null,null,null,null,null,null,null,null,null,null,null,null,null,null,null,null,null,null,null,null,null,null,null,null,null,null,null,null,null,null,null,null,null,null,null,null,null,null,null,null,null,null,null,null,null,null,null,null,null,null,null,null,null,null,null,null,null,null,null,null,null,null,null,null,null,null,null,null,null,null,null,null,null,null,null,null,null,null,null,null,null,null,null,null,null,null,null,null,null,null,null,null,null,null,null,null,null,null,null,null,null,null,null,null,null,null,null,null,null,null,null,null,null,null,null,null,null,null,null,null,null,null,null,null,null,null,null,null,null,null,null,null,null,null,null,null,null,null,null,null,null,null,null,null,null,null,null,null,null,null,null,null,null,null,null,null,null,null,null,null,null,null,null,null,null,null,null,null,null,null,null,null,null,null,null,null,null,null,null,null,null,null,null,null,null,null,null,null,null,null,null,null,null,null,null,null,null,null,null,null,null,null,null,null,null,null,null,null,null,null,null,null,null,null,null,null,null,null,null,null,null,null,"n.a.",{"$f":"empresa_ccaa!M19-empresa_ccaa!H19","v":{"$error":"#DIV/0!"}},null,1,0,"CASTILLA-LA MANCHA","n.a.",0.23250738002779103]
[null,null,"CASTILLA Y LEÓN",{"$f":"empresa_ccaa!F20","v":34605797.098203465},{"$f":"empresa_ccaa!G20","v":40543959.033067457},0.17159442731553987,{"$f":"empresa_ccaa!K20","v":0},{"$f":"empresa_ccaa!L20","v":0},"n.a.",0,0,{"$f":"(K16-J16)*100","v":0},null,0.17159442731553987,0,null,null,null,null,null,null,null,null,null,null,null,null,null,null,null,null,null,null,null,null,null,null,null,null,null,null,null,null,null,null,null,null,null,null,null,null,null,null,null,null,null,null,null,null,null,null,null,null,null,null,null,null,null,null,null,null,null,null,null,null,null,null,null,null,null,null,null,null,null,null,null,null,null,null,null,null,null,null,null,null,null,null,null,null,null,null,null,null,null,null,null,null,null,null,null,null,null,null,null,null,null,null,null,null,null,null,null,null,null,null,null,null,null,null,null,null,null,null,null,null,null,null,null,null,null,null,null,null,null,null,null,null,null,null,null,null,null,null,null,null,null,null,null,null,null,null,null,null,null,null,null,null,null,null,null,null,null,null,null,null,null,null,null,null,null,null,null,null,null,null,null,null,null,null,null,null,null,null,null,null,null,null,null,null,null,null,null,null,null,null,null,null,null,null,null,null,null,null,null,null,null,null,null,null,null,null,null,null,null,null,null,null,null,null,null,null,null,null,null,null,null,null,null,null,null,null,null,null,null,null,null,null,null,null,null,null,null,null,null,null,null,null,null,null,null,null,null,null,null,null,null,null,null,null,null,null,null,null,null,null,null,null,null,null,null,null,null,null,null,null,null,null,null,null,null,null,null,null,null,null,null,null,null,null,null,null,null,null,null,null,null,null,null,null,null,null,null,null,null,null,null,null,null,null,null,null,null,null,null,null,null,null,null,null,null,null,null,null,null,null,null,null,null,null,null,null,null,null,null,null,null,"n.a.",{"$f":"empresa_ccaa!M20-empresa_ccaa!H20","v":{"$error":"#DIV/0!"}},null,1,0,"CASTILLA Y LEÓN","n.a.",0.17159442731553987]
[null,null,"CATALUÑA",{"$f":"empresa_ccaa!F21","v":125957443.51813532},{"$f":"empresa_ccaa!G21","v":157960177.2996963},0.25407576470026738,{"$f":"empresa_ccaa!K21","v":0},{"$f":"empresa_ccaa!L21","v":0},{"$f":"IF(G17>0,((H17/G17)-1),\"n.a.\")","v":"n.a."},0,0,{"$f":"(K17-J17)*100","v":0},null,0.25407576470026738,0,null,null,null,null,null,null,null,null,null,null,null,null,null,null,null,null,null,null,null,null,null,null,null,null,null,null,null,null,null,null,null,null,null,null,null,null,null,null,null,null,null,null,null,null,null,null,null,null,null,null,null,null,null,null,null,null,null,null,null,null,null,null,null,null,null,null,null,null,null,null,null,null,null,null,null,null,null,null,null,null,null,null,null,null,null,null,null,null,null,null,null,null,null,null,null,null,null,null,null,null,null,null,null,null,null,null,null,null,null,null,null,null,null,null,null,null,null,null,null,null,null,null,null,null,null,null,null,null,null,null,null,null,null,null,null,null,null,null,null,null,null,null,null,null,null,null,null,null,null,null,null,null,null,null,null,null,null,null,null,null,null,null,null,null,null,null,null,null,null,null,null,null,null,null,null,null,null,null,null,null,null,null,null,null,null,null,null,null,null,null,null,null,null,null,null,null,null,null,null,null,null,null,null,null,null,null,null,null,null,null,null,null,null,null,null,null,null,null,null,null,null,null,null,null,null,null,null,null,null,null,null,null,null,null,null,null,null,null,null,null,null,null,null,null,null,null,null,null,null,null,null,null,null,null,null,null,null,null,null,null,null,null,null,null,null,null,null,null,null,null,null,null,null,null,null,null,null,null,null,null,null,null,null,null,null,null,null,null,null,null,null,null,null,null,null,null,null,null,null,null,null,null,null,null,null,null,null,null,null,null,null,null,null,null,null,null,null,null,null,null,null,null,null,null,null,null,null,null,null,null,null,"n.a.",{"$f":"empresa_ccaa!M21-empresa_ccaa!H21","v":{"$error":"#DIV/0!"}},null,1,0,"CATALUÑA","n.a.",0.25407576470026738]
[null,null,"COMUNIDAD VALENCIANA",{"$f":"empresa_ccaa!F22","v":39761725.8868718},{"$f":"empresa_ccaa!G22","v":41793268.504411399},5.1092918434165746E-2,{"$f":"empresa_ccaa!K22","v":0},{"$f":"empresa_ccaa!L22","v":0},"n.a.",0,0,{"$f":"(K18-J18)*100","v":0},null,5.1092918434165746E-2,0,null,null,null,null,null,null,null,null,null,null,null,null,null,null,null,null,null,null,null,null,null,null,null,null,null,null,null,null,null,null,null,null,null,null,null,null,null,null,null,null,null,null,null,null,null,null,null,null,null,null,null,null,null,null,null,null,null,null,null,null,null,null,null,null,null,null,null,null,null,null,null,null,null,null,null,null,null,null,null,null,null,null,null,null,null,null,null,null,null,null,null,null,null,null,null,null,null,null,null,null,null,null,null,null,null,null,null,null,null,null,null,null,null,null,null,null,null,null,null,null,null,null,null,null,null,null,null,null,null,null,null,null,null,null,null,null,null,null,null,null,null,null,null,null,null,null,null,null,null,null,null,null,null,null,null,null,null,null,null,null,null,null,null,null,null,null,null,null,null,null,null,null,null,null,null,null,null,null,null,null,null,null,null,null,null,null,null,null,null,null,null,null,null,null,null,null,null,null,null,null,null,null,null,null,null,null,null,null,null,null,null,null,null,null,null,null,null,null,null,null,null,null,null,null,null,null,null,null,null,null,null,null,null,null,null,null,null,null,null,null,null,null,null,null,null,null,null,null,null,null,null,null,null,null,null,null,null,null,null,null,null,null,null,null,null,null,null,null,null,null,null,null,null,null,null,null,null,null,null,null,null,null,null,null,null,null,null,null,null,null,null,null,null,null,null,null,null,null,null,null,null,null,null,null,null,null,null,null,null,null,null,null,null,null,null,null,null,null,null,null,null,null,null,null,null,null,null,null,null,null,null,"n.a.",{"$f":"empresa_ccaa!M22-empresa_ccaa!H22","v":{"$error":"#DIV/0!"}},null,1,0,"COMUNIDAD VALENCIANA","n.a.",5.1092918434165746E-2]
[null,null,"EXTREMADURA",{"$f":"empresa_ccaa!F23","v":2196644.3514030534},{"$f":"empresa_ccaa!G23","v":3471905.5838622088},0.58054970602984191,{"$f":"empresa_ccaa!K23","v":0},{"$f":"empresa_ccaa!L23","v":0},"n.a.",0,0,0,null,0.58054970602984191,0,null,null,null,null,null,null,null,null,null,null,null,null,null,null,null,null,null,null,null,null,null,null,null,null,null,null,null,null,null,null,null,null,null,null,null,null,null,null,null,null,null,null,null,null,null,null,null,null,null,null,null,null,null,null,null,null,null,null,null,null,null,null,null,null,null,null,null,null,null,null,null,null,null,null,null,null,null,null,null,null,null,null,null,null,null,null,null,null,null,null,null,null,null,null,null,null,null,null,null,null,null,null,null,null,null,null,null,null,null,null,null,null,null,null,null,null,null,null,null,null,null,null,null,null,null,null,null,null,null,null,null,null,null,null,null,null,null,null,null,null,null,null,null,null,null,null,null,null,null,null,null,null,null,null,null,null,null,null,null,null,null,null,null,null,null,null,null,null,null,null,null,null,null,null,null,null,null,null,null,null,null,null,null,null,null,null,null,null,null,null,null,null,null,null,null,null,null,null,null,null,null,null,null,null,null,null,null,null,null,null,null,null,null,null,null,null,null,null,null,null,null,null,null,null,null,null,null,null,null,null,null,null,null,null,null,null,null,null,null,null,null,null,null,null,null,null,null,null,null,null,null,null,null,null,null,null,null,null,null,null,null,null,null,null,null,null,null,null,null,null,null,null,null,null,null,null,null,null,null,null,null,null,null,null,null,null,null,null,null,null,null,null,null,null,null,null,null,null,null,null,null,null,null,null,null,null,null,null,null,null,null,null,null,null,null,null,null,null,null,null,null,null,null,null,null,null,null,null,null,null,null,"n.a.",{"$f":"empresa_ccaa!M23-empresa_ccaa!H23","v":{"$error":"#DIV/0!"}},null,1,0,"EXTREMADURA","n.a.",0.58054970602984191]
[null,null,"GALICIA",{"$f":"empresa_ccaa!F24","v":25612741.891437717},{"$f":"empresa_ccaa!G24","v":31982868.833288208},0.24870929355595517,{"$f":"empresa_ccaa!K24","v":0},{"$f":"empresa_ccaa!L24","v":0},"n.a.",0,0,0,null,0.24870929355595517,0,null,null,null,null,null,null,null,null,null,null,null,null,null,null,null,null,null,null,null,null,null,null,null,null,null,null,null,null,null,null,null,null,null,null,null,null,null,null,null,null,null,null,null,null,null,null,null,null,null,null,null,null,null,null,null,null,null,null,null,null,null,null,null,null,null,null,null,null,null,null,null,null,null,null,null,null,null,null,null,null,null,null,null,null,null,null,null,null,null,null,null,null,null,null,null,null,null,null,null,null,null,null,null,null,null,null,null,null,null,null,null,null,null,null,null,null,null,null,null,null,null,null,null,null,null,null,null,null,null,null,null,null,null,null,null,null,null,null,null,null,null,null,null,null,null,null,null,null,null,null,null,null,null,null,null,null,null,null,null,null,null,null,null,null,null,null,null,null,null,null,null,null,null,null,null,null,null,null,null,null,null,null,null,null,null,null,null,null,null,null,null,null,null,null,null,null,null,null,null,null,null,null,null,null,null,null,null,null,null,null,null,null,null,null,null,null,null,null,null,null,null,null,null,null,null,null,null,null,null,null,null,null,null,null,null,null,null,null,null,null,null,null,null,null,null,null,null,null,null,null,null,null,null,null,null,null,null,null,null,null,null,null,null,null,null,null,null,null,null,null,null,null,null,null,null,null,null,null,null,null,null,null,null,null,null,null,null,null,null,null,null,null,null,null,null,null,null,null,null,null,null,null,null,null,null,null,null,null,null,null,null,null,null,null,null,null,null,null,null,null,null,null,null,null,null,null,null,null,null,null,null,"n.a.",{"$f":"empresa_ccaa!M24-empresa_ccaa!H24","v":{"$error":"#DIV/0!"}},null,1,0,"GALICIA","n.a.",0.24870929355595517]
[null,null,"MADRID",{"$f":"empresa_ccaa!F25","v":84465514.612014592},{"$f":"empresa_ccaa!G25","v":93498479.601361305},0.10694263843461904,{"$f":"empresa_ccaa!K25","v":0},{"$f":"empresa_ccaa!L25","v":0},"n.a.",0,0,0,null,0.10694263843461904,0,null,null,null,null,null,null,null,null,null,null,null,null,null,null,null,null,null,null,null,null,null,null,null,null,null,null,null,null,null,null,null,null,null,null,null,null,null,null,null,null,null,null,null,null,null,null,null,null,null,null,null,null,null,null,null,null,null,null,null,null,null,null,null,null,null,null,null,null,null,null,null,null,null,null,null,null,null,null,null,null,null,null,null,null,null,null,null,null,null,null,null,null,null,null,null,null,null,null,null,null,null,null,null,null,null,null,null,null,null,null,null,null,null,null,null,null,null,null,null,null,null,null,null,null,null,null,null,null,null,null,null,null,null,null,null,null,null,null,null,null,null,null,null,null,null,null,null,null,null,null,null,null,null,null,null,null,null,null,null,null,null,null,null,null,null,null,null,null,null,null,null,null,null,null,null,null,null,null,null,null,null,null,null,null,null,null,null,null,null,null,null,null,null,null,null,null,null,null,null,null,null,null,null,null,null,null,null,null,null,null,null,null,null,null,null,null,null,null,null,null,null,null,null,null,null,null,null,null,null,null,null,null,null,null,null,null,null,null,null,null,null,null,null,null,null,null,null,null,null,null,null,null,null,null,null,null,null,null,null,null,null,null,null,null,null,null,null,null,null,null,null,null,null,null,null,null,null,null,null,null,null,null,null,null,null,null,null,null,null,null,null,null,null,null,null,null,null,null,null,null,null,null,null,null,null,null,null,null,null,null,null,null,null,null,null,null,null,null,null,null,null,null,null,null,null,null,null,null,null,null,null,"n.a.",{"$f":"empresa_ccaa!M25-empresa_ccaa!H25","v":{"$error":"#DIV/0!"}},null,1,0,"MADRID","n.a.",0.10694263843461904]
[null,null,"MURCIA",{"$f":"empresa_ccaa!F26","v":20416826.600383483},{"$f":"empresa_ccaa!G26","v":22977944.691181131},0.12544153608815689,{"$f":"empresa_ccaa!K26","v":0},{"$f":"empresa_ccaa!L26","v":0},"n.a.",0,0,0,null,0.12544153608815689,0,null,null,null,null,null,null,null,null,null,null,null,null,null,null,null,null,null,null,null,null,null,null,null,null,null,null,null,null,null,null,null,null,null,null,null,null,null,null,null,null,null,null,null,null,null,null,null,null,null,null,null,null,null,null,null,null,null,null,null,null,null,null,null,null,null,null,null,null,null,null,null,null,null,null,null,null,null,null,null,null,null,null,null,null,null,null,null,null,null,null,null,null,null,null,null,null,null,null,null,null,null,null,null,null,null,null,null,null,null,null,null,null,null,null,null,null,null,null,null,null,null,null,null,null,null,null,null,null,null,null,null,null,null,null,null,null,null,null,null,null,null,null,null,null,null,null,null,null,null,null,null,null,null,null,null,null,null,null,null,null,null,null,null,null,null,null,null,null,null,null,null,null,null,null,null,null,null,null,null,null,null,null,null,null,null,null,null,null,null,null,null,null,null,null,null,null,null,null,null,null,null,null,null,null,null,null,null,null,null,null,null,null,null,null,null,null,null,null,null,null,null,null,null,null,null,null,null,null,null,null,null,null,null,null,null,null,null,null,null,null,null,null,null,null,null,null,null,null,null,null,null,null,null,null,null,null,null,null,null,null,null,null,null,null,null,null,null,null,null,null,null,null,null,null,null,null,null,null,null,null,null,null,null,null,null,null,null,null,null,null,null,null,null,null,null,null,null,null,null,null,null,null,null,null,null,null,null,null,null,null,null,null,null,null,null,null,null,null,null,null,null,null,null,null,null,null,null,null,null,null,null,"n.a.",{"$f":"empresa_ccaa!M26-empresa_ccaa!H26","v":{"$error":"#DIV/0!"}},null,1,0,"MURCIA","n.a.",0.12544153608815689]
[null,null,"NAVARRA",{"$f":"empresa_ccaa!F27","v":16721171.956816871},{"$f":"empresa_ccaa!G27","v":21894635.446953058},0.30939598632780485,{"$f":"empresa_ccaa!K27","v":0},{"$f":"empresa_ccaa!L27","v":0},"n.a.",0,0,0,null,0.30939598632780485,0,null,null,null,null,null,null,null,null,null,null,null,null,null,null,null,null,null,null,null,null,null,null,null,null,null,null,null,null,null,null,null,null,null,null,null,null,null,null,null,null,null,null,null,null,null,null,null,null,null,null,null,null,null,null,null,null,null,null,null,null,null,null,null,null,null,null,null,null,null,null,null,null,null,null,null,null,null,null,null,null,null,null,null,null,null,null,null,null,null,null,null,null,null,null,null,null,null,null,null,null,null,null,null,null,null,null,null,null,null,null,null,null,null,null,null,null,null,null,null,null,null,null,null,null,null,null,null,null,null,null,null,null,null,null,null,null,null,null,null,null,null,null,null,null,null,null,null,null,null,null,null,null,null,null,null,null,null,null,null,null,null,null,null,null,null,null,null,null,null,null,null,null,null,null,null,null,null,null,null,null,null,null,null,null,null,null,null,null,null,null,null,null,null,null,null,null,null,null,null,null,null,null,null,null,null,null,null,null,null,null,null,null,null,null,null,null,null,null,null,null,null,null,null,null,null,null,null,null,null,null,null,null,null,null,null,null,null,null,null,null,null,null,null,null,null,null,null,null,null,null,null,null,null,null,null,null,null,null,null,null,null,null,null,null,null,null,null,null,null,null,null,null,null,null,null,null,null,null,null,null,null,null,null,null,null,null,null,null,null,null,null,null,null,null,null,null,null,null,null,null,null,null,null,null,null,null,null,null,null,null,null,null,null,null,null,null,null,null,null,null,null,null,null,null,null,null,null,null,null,null,null,"n.a.",{"$f":"empresa_ccaa!M27-empresa_ccaa!H27","v":{"$error":"#DIV/0!"}},null,1,0,"NAVARRA","n.a.",0.30939598632780485]
[null,null,"PAIS VASCO",{"$f":"empresa_ccaa!F28","v":27736766.163567007},{"$f":"empresa_ccaa!G28","v":29620806.90944089},6.7925753664413113E-2,{"$f":"empresa_ccaa!K28","v":0},{"$f":"empresa_ccaa!L28","v":0},"n.a.",0,0,0,null,6.7925753664413113E-2,0,null,null,null,null,null,null,null,null,null,null,null,null,null,null,null,null,null,null,null,null,null,null,null,null,null,null,null,null,null,null,null,null,null,null,null,null,null,null,null,null,null,null,null,null,null,null,null,null,null,null,null,null,null,null,null,null,null,null,null,null,null,null,null,null,null,null,null,null,null,null,null,null,null,null,null,null,null,null,null,null,null,null,null,null,null,null,null,null,null,null,null,null,null,null,null,null,null,null,null,null,null,null,null,null,null,null,null,null,null,null,null,null,null,null,null,null,null,null,null,null,null,null,null,null,null,null,null,null,null,null,null,null,null,null,null,null,null,null,null,null,null,null,null,null,null,null,null,null,null,null,null,null,null,null,null,null,null,null,null,null,null,null,null,null,null,null,null,null,null,null,null,null,null,null,null,null,null,null,null,null,null,null,null,null,null,null,null,null,null,null,null,null,null,null,null,null,null,null,null,null,null,null,null,null,null,null,null,null,null,null,null,null,null,null,null,null,null,null,null,null,null,null,null,null,null,null,null,null,null,null,null,null,null,null,null,null,null,null,null,null,null,null,null,null,null,null,null,null,null,null,null,null,null,null,null,null,null,null,null,null,null,null,null,null,null,null,null,null,null,null,null,null,null,null,null,null,null,null,null,null,null,null,null,null,null,null,null,null,null,null,null,null,null,null,null,null,null,null,null,null,null,null,null,null,null,null,null,null,null,null,null,null,null,null,null,null,null,null,null,null,null,null,null,null,null,null,null,null,null,null,null,"n.a.",{"$f":"empresa_ccaa!M28-empresa_ccaa!H28","v":{"$error":"#DIV/0!"}},null,1,0,"PAIS VASCO","n.a.",6.7925753664413113E-2]
[null,null,"RIOJA (LA)",{"$f":"empresa_ccaa!F29","v":4476447.4214001065},{"$f":"empresa_ccaa!G29","v":4416810.9723093472},-1.3322271765253246E-2,{"$f":"empresa_ccaa!K29","v":0},{"$f":"empresa_ccaa!L29","v":0},"n.a.",0,0,0,null,-1.3322271765253246E-2,0,null,null,null,null,null,null,null,null,null,null,null,null,null,null,null,null,null,null,null,null,null,null,null,null,null,null,null,null,null,null,null,null,null,null,null,null,null,null,null,null,null,null,null,null,null,null,null,null,null,null,null,null,null,null,null,null,null,null,null,null,null,null,null,null,null,null,null,null,null,null,null,null,null,null,null,null,null,null,null,null,null,null,null,null,null,null,null,null,null,null,null,null,null,null,null,null,null,null,null,null,null,null,null,null,null,null,null,null,null,null,null,null,null,null,null,null,null,null,null,null,null,null,null,null,null,null,null,null,null,null,null,null,null,null,null,null,null,null,null,null,null,null,null,null,null,null,null,null,null,null,null,null,null,null,null,null,null,null,null,null,null,null,null,null,null,null,null,null,null,null,null,null,null,null,null,null,null,null,null,null,null,null,null,null,null,null,null,null,null,null,null,null,null,null,null,null,null,null,null,null,null,null,null,null,null,null,null,null,null,null,null,null,null,null,null,null,null,null,null,null,null,null,null,null,null,null,null,null,null,null,null,null,null,null,null,null,null,null,null,null,null,null,null,null,null,null,null,null,null,null,null,null,null,null,null,null,null,null,null,null,null,null,null,null,null,null,null,null,null,null,null,null,null,null,null,null,null,null,null,null,null,null,null,null,null,null,null,null,null,null,null,null,null,null,null,null,null,null,null,null,null,null,null,null,null,null,null,null,null,null,null,null,null,null,null,null,null,null,null,null,null,null,null,null,null,null,null,null,null,null,null,"n.a.",{"$f":"empresa_ccaa!M29-empresa_ccaa!H29","v":{"$error":"#DIV/0!"}},null,1,0,"RIOJA (LA)","n.a.",-1.3322271765253246E-2]
[null,null,null,null,null,null,null,null,null,null,null,null,null,null,null,null,null,null,null,null,null,null,null,null,null,null,null,null,null,null,null,null,null,null,null,null,null,null,null,null,null,null,null,null,null,null,null,null,null,null,null,null,null,null,null,null,null,null,null,null,null,null,null,null,null,null,null,null,null,null,null,null,null,null,null,null,null,null,null,null,null,null,null,null,null,null,null,null,null,null,null,null,null,null,null,null,null,null,null,null,null,null,null,null,null,null,null,null,null,null,null,null,null,null,null,null,null,null,null,null,null,null,null,null,null,null,null,null,null,null,null,null,null,null,null,null,null,null,null,null,null,null,null,null,null,null,null,null,null,null,null,null,null,null,null,null,null,null,null,null,null,null,null,null,null,null,null,null,null,null,null,null,null,null,null,null,null,null,null,null,null,null,null,null,null,null,null,null,null,null,null,null,null,null,null,null,null,null,null,null,null,null,null,null,null,null,null,null,null,null,null,null,null,null,null,null,null,null,null,null,null,null,null,null,null,null,null,null,null,null,null,null,null,null,null,null,null,null,null,null,null,null,null,null,null,null,null,null,null,null,null,null,null,null,null,null,null,null,null,null,null,null,null,null,null,null,null,null,null,null,null,null,null,null,null,null,null,null,null,null,null,null,null,null,null,null,null,null,null,null,null,null,null,null,null,null,null,null,null,null,null,null,null,null,null,null,null,null,null,null,null,null,null,null,null,null,null,null,null,null,null,null,null,null,null,null,null,null,null,null,null,null,null,null,null,null,null,null,null,null,null,null,null,null,null,null,null,null,null,"codifico=1","máximo"]
[null,null,null,null,null,null,null,null,null,null,null,null,null,null,null,null,null,null,null,null,null,null,null,null,null,null,null,null,null,null,null,null,null,null,null,null,null,null,null,null,null,null,null,null,null,null,null,null,null,null,null,null,null,null,null,null,null,null,null,null,null,null,null,null,null,null,null,null,null,null,null,null,null,null,null,null,null,null,null,null,null,null,null,null,null,null,null,null,null,null,null,null,null,null,null,null,null,null,null,null,null,null,null,null,null,null,null,null,null,null,null,null,null,null,null,null,null,null,null,null,null,null,null,null,null,null,null,null,null,null,null,null,null,null,null,null,null,null,null,null,null,null,null,null,null,null,null,null,null,null,null,null,null,null,null,null,null,null,null,null,null,null,null,null,null,null,null,null,null,null,null,null,null,null,null,null,null,null,null,null,null,null,null,null,null,null,null,null,null,null,null,null,null,null,null,null,null,null,null,null,null,null,null,null,null,null,null,null,null,null,null,null,null,null,null,null,null,null,null,null,null,null,null,null,null,null,null,null,null,null,null,null,null,null,null,null,null,null,null,null,null,null,null,null,null,null,null,null,null,null,null,null,null,null,null,null,null,null,null,null,null,null,null,null,null,null,null,null,null,null,null,null,null,null,null,null,null,null,null,null,null,null,null,null,null,null,null,null,null,null,null,null,null,null,null,null,null,null,null,null,null,null,null,null,null,null,null,null,null,null,null,null,null,null,null,null,null,null,null,null,null,null,null,null,null,null,null,null,null,null,null,null,null,null,null,null,null,null,null,null,null,null,null,null,null,null,null,null,null,{"$f":"DMAX(ML8:MN25,MM8,ML8:ML25)*1","v":0},{"$f":"MAX(MM9:MM25)","v":0}]
[null,null,null,null,null,null,null,null,null,null,null,{"$f":"K6","v":"Cuota de Facturación"},null,null,null,null,null,null,null,null,null,null,null,null,null,null,null,null,null,null,null,null,null,null,null,null,null,null,null,null,null,null,null,null,null,null,null,null,null,null,null,null,null,null,null,null,null,null,null,null,null,null,null,null,null,null,null,null,null,null,null,null,null,null,null,null,null,null,null,null,null,null,null,null,null,null,null,null,null,null,null,null,null,null,null,null,null,null,null,null,null,null,null,null,null,null,null,null,null,null,null,null,null,null,null,null,null,null,null,null,null,null,null,null,null,null,null,null,null,null,null,null,null,null,null,null,null,null,null,null,null,null,null,null,null,null,null,null,null,null,null,null,null,null,null,null,null,null,null,null,null,null,null,null,null,null,null,null,null,null,null,null,null,null,null,null,null,null,null,null,null,null,null,null,null,null,null,null,null,null,null,null,null,null,null,null,null,null,null,null,null,null,null,null,null,null,null,null,null,null,null,null,null,null,null,null,null,null,null,null,null,null,null,null,null,null,null,null,null,null,null,null,null,null,null,null,null,null,null,null,null,null,null,null,null,null,null,null,null,null,null,null,null,null,null,null,null,null,null,null,null,null,null,null,null,null,null,null,null,null,null,null,null,null,null,null,null,null,null,null,null,null,null,null,null,null,null,null,null,null,null,null,null,null,null,null,null,null,null,null,null,null,null,null,null,null,null,null,null,null,null,null,null,null,null,null,null,null,null,null,null,null,null,null,null,null,null,null,null,null,null,null,null,null,null,null,null,null,null,null,null,null,null,null,null,null,null,null,"geo data",{"$f":"VLOOKUP(1,ML8:MP25,3,0)","v":"ANDALUCIA"}]
[null,null,null,null,null,null,null,null,null,null,null,null,null,null,{"$f":"K7","v":2018},null,null,null,null,null,null,null,null,null,null,null,null,null,null,null,null,null,null,null,null,null,null,null,null,null,null,null,null,null,null,null,null,null,null,null,null,null,null,null,null,null,null,null,null,null,null,null,null,null,null,null,null,null,null,null,null,null,null,null,null,null,null,null,null,null,null,null,null,null,null,null,null,null,null,null,null,null,null,null,null,null,null,null,null,null,null,null,null,null,null,null,null,null,null,null,null,null,null,null,null,null,null,null,null,null,null,null,null,null,null,null,null,null,null,null,null,null,null,null,null,null,null,null,null,null,null,null,null,null,null,null,null,null,null,null,null,null,null,null,null,null,null,null,null,null,null,null,null,null,null,null,null,null,null,null,null,null,null,null,null,null,null,null,null,null,null,null,null,null,null,null,null,null,null,null,null,null,null,null,null,null,null,null,null,null,null,null,null,null,null,null,null,null,null,null,null,null,null,null,null,null,null,null,null,null,null,null,null,null,null,null,null,null,null,null,null,null,null,null,null,null,null,null,null,null,null,null,null,null,null,null,null,null,null,null,null,null,null,null,null,null,null,null,null,null,null,null,null,null,null,null,null,null,null,null,null,null,null,null,null,null,null,null,null,null,null,null,null,null,null,null,null,null,null,null,null,null,null,null,null,null,null,null,null,null,null,null,null,null,null,null,null,null,null,null,null,null,null,null,null,null,null,null,null,null,null,null,null,null,null,null,null,null,null,null,null,null,null,null,null,null,null,null,null,null,null,null,null,null,null,null,null,null,null,"el dato a buscar debe estar en la primera columna. "]
[null,null,null,"% i.a.",null,null,null,"% i.a.",null,null,null,null,null,null,null,null,null,null,null,null,null,null,null,null,null,null,null,null,null,null,null,null,null,null,null,null,null,null,null,null,null,null,null,null,null,null,null,null,null,null,null,null,null,null,null,null,null,null,null,null,null,null,null,null,null,null,null,null,null,null,null,null,null,null,null,null,null,null,null,null,null,null,null,null,null,null,null,null,null,null,null,null,null,null,null,null,null,null,null,null,null,null,null,null,null,null,null,null,null,null,null,null,null,null,null,null,null,null,null,null,null,null,null,null,null,null,null,null,null,null,null,null,null,null,null,null,null,null,null,null,null,null,null,null,null,null,null,null,null,null,null,null,null,null,null,null,null,null,null,null,null,null,null,null,null,null,null,null,null,null,null,null,null,null,null,null,null,null,null,null,null,null,null,null,null,null,null,null,null,null,null,null,null,null,null,null,null,null,null,null,null,null,null,null,null,null,null,null,null,null,null,null,null,null,null,null,null,null,null,null,null,null,null,null,null,null,null,null,null,null,null,null,null,null,null,null,null,null,null,null,null,null,null,null,null,null,null,null,null,null,null,null,null,null,null,null,null,null,null,null,null,null,null,null,null,null,null,null,null,null,null,null,null,null,null,null,null,null,null,null,null,null,null,null,null,null,null,null,null,null,null,null,null,null,null,null,null,null,null,null,null,null,null,null,null,null,null,null,null,null,null,null,null,null,null,null,null,null,null,null,null,null,null,null,null,null,null,null,null,null,null,null,null,null,null,null,null,null,null,null,null,null,null,null,null,null,null,null,null,{"$f":"VLOOKUP(1,ML8:MP25,4,0)*1","v":{"$error":"#VALUE!"}}]
[null,null,null,2017,null,null,null,2017,null,null,null,null,null,null,null,null,null,null,null,null,null,null,null,null,null,null,null,null,null,null,null,null,null,null,null,null,null,null,null,null,null,null,null,null,null,null,null,null,null,null,null,null,null,null,null,null,null,null,null,null,null,null,null,null,null,null,null,null,null,null,null,null,null,null,null,null,null,null,null,null,null,null,null,null,null,null,null,null,null,null,null,null,null,null,null,null,null,null,null,null,null,null,null,null,null,null,null,null,null,null,null,null,null,null,null,null,null,null,null,null,null,null,null,null,null,null,null,null,null,null,null,null,null,null,null,null,null,null,null,null,null,null,null,null,null,null,null,null,null,null,null,null,null,null,null,null,null,null,null,null,null,null,null,null,null,null,null,null,null,null,null,null,null,null,null,null,null,null,null,null,null,null,null,null,null,null,null,null,null,null,null,null,null,null,null,null,null,null,null,null,null,null,null,null,null,null,null,null,null,null,null,null,null,null,null,null,null,null,null,null,null,null,null,null,null,null,null,null,null,null,null,null,null,null,null,null,null,null,null,null,null,null,null,null,null,null,null,null,null,null,null,null,null,null,null,null,null,null,null,null,null,null,null,null,null,null,null,null,null,null,null,null,null,null,null,null,null,null,null,null,null,null,null,null,null,null,null,null,null,null,null,null,null,null,null,null,null,null,null,null,null,null,null,null,null,null,null,null,null,null,null,null,null,null,null,null,null,null,null,null,null,null,null,null,null,null,null,null,null,null,null,null,null,null,null,null,null,null,null,null,null,null,null,null,null,null,null,null,null,{"$f":"VLOOKUP(1,ML8:MP25,5,0)*1","v":0.15946136961790569}]
[null,null,null,"Total",null,null,null,"Empresa",null,null,null,{"$f":"L5","v":"iEMPRESA"}]
[null,null,null,null,null,null,null,null,null,null,null,null,null,null,"Ámbito"]
[null,null,"Ámbito",{"$f":"H34","v":"Nacional"},null,null,null,{"$f":"L34","v":"Nacional"},null,null,null,"Nacional",null,null,"Nacional"]
[]
[]
[]
[null,null,null,null,null,null,null,null,null,null,null,{"$f":"ML28","v":"ANDALUCIA"},null,null,"CCAA"]
[null,null,null,null,null,null,null,null,null,null,null,null,null,null,"Líder para la"]
[null,null,null,"% i.a.",null,null,null,"% i.a.",null,null,null,null,null,null,"Empresa"]
[null,null,null,2017,null,null,null,2017]
[null,null,null,"Total",null,null,null,"Empresa",null,null,null,{"$f":"L32","v":"iEMPRESA"}]
[]
[null,null,"Ámbito",{"$f":"H44","v":"ANDALUCIA"},null,null,null,{"$f":"L44","v":"ANDALUCIA"},null,null,null,{"$f":"L38","v":"ANDALUCIA"}]
[]
[]
[]
[null,null,"Fuente: Cifras consolidadas del sector. Valores absolutos 2015-2018 y cifras de evolución de 2016 a la fecha. ASEMPLEO ©."]
[null,null,"Nota de Confidencialidad: Este informe comparativo contiene datos redondeados que son ficticeos y serán reemplazados por los que la Empresa introduzca en \"empresa_ccaa\"."]

{"sheet":"Ayuda y Version","index":1,"n_rows":2,"n_cols":8,"rows_kept":2,"cut":false,"hidden":true,"merged":[]}
[]
[null,null,null,null,null,null,"Versión de plantilla:",2.5]

{"sheet":"pBlock","index":2,"n_rows":5,"n_cols":3,"rows_kept":5,"cut":false,"hidden":true,"merged":[]}
[]
[]
[]
[null,"Block Test"]
[null,"Info1","Info2"]

{"sheet":"pAccel0","index":3,"n_rows":30,"n_cols":42,"rows_kept":30,"cut":false,"hidden":true,"merged":[]}
["Gauge Configuration",null,null,null,null,null,null,null,null,null,null,null,null,null,"Gauge Configuration",null,null,null,null,null,null,null,null,null,null,"Gauge Configuration",null,null,null,null,null,null,null,null,null,null,"Gauge Configuration"]
[null,null,null,null,null,"Decal",null,null,null,null,null,null,null,null,null,null,null,null,null,"Decal",null,null,null,null,null,null,null,null,null,null,"Decal",null,null,null,null,null,null,null,null,null,null,"Decal"]
["Title:",{"$f":"Dashboard!#REF!","v":{"$error":"#REF!"}},null,null,null,0,null,null,null,null,null,null,null,null,"Title:",{"$f":"pAccel0!B3","v":{"$error":"#REF!"}},null,null,null,0,null,null,null,null,null,"Title:","Empresa",null,null,null,0,null,null,null,null,null,"Title:","CCAA",null,null,null,0]
["Real Value:",{"$f":"Dashboard!#REF!","v":{"$error":"#REF!"}},null,null,null,null,null,null,null,null,null,null,null,null,"Real Value:",{"$f":"Dashboard!K8","v":0},null,null,null,null,null,null,null,null,null,"Real Value:",{"$f":"Dashboard!K8","v":0},null,null,null,null,null,null,null,null,null,"Real Value:",{"$f":"Dashboard!ML27","v":0}]
[]
["Color bands",null,null,null,null,null,null,null,null,null,null,null,null,null,"Color bands",null,null,null,null,null,null,null,null,null,null,"Color bands",null,null,null,null,null,null,null,null,null,null,"Color bands"]
["Red:",2,null,null,null,null,null,null,null,null,null,null,null,null,"Red:",2,null,null,null,null,null,null,null,null,null,"Red:",2,null,null,null,null,null,null,null,null,null,"Red:",2]
["Yellow:",15,null,null,null,null,null,null,null,null,null,null,null,null,"Yellow:",15,null,null,null,null,null,null,null,null,null,"Yellow:",15,null,null,null,null,null,null,null,null,null,"Yellow:",15]
["Green:",23,null,null,null,null,null,null,null,null,null,null,null,null,"Green:",23,null,null,null,null,null,null,null,null,null,"Green:",23,null,null,null,null,null,null,null,null,null,"Green:",23]
[]
["Advanced Parameters",null,null,null,null,null,null,null,null,null,null,null,null,null,"Advanced Parameters",null,null,null,null,null,null,null,null,null,null,"Advanced Parameters",null,null,null,null,null,null,null,null,null,null,"Advanced Parameters"]
[null,"Value to 100%",{"$f":"IF(ISERROR((B4-F3/100)*B27),0,(B4-F3/100)*B27)","v":0},null,null,null,null,null,null,null,null,null,null,null,null,"Value to 100%",{"$f":"IF(ISERROR((P4-T3/100)*P27),0,(P4-T3/100)*P27)","v":0},null,null,null,null,null,null,null,null,null,"Value to 100%",{"$f":"IF(ISERROR((AA4-AE3/100)*AA27),0,(AA4-AE3/100)*AA27)","v":0},null,null,null,null,null,null,null,null,null,"Value to 100%",{"$f":"IF(ISERROR((AL4-AP3/100)*AL27),0,(AL4-AP3/100)*AL27)","v":0}]
[null,"Relative value",{"$f":"IF(C12>100%,102%,IF(C12<0%,-2%,C12))*1.506-0.253","v":-0.253},null,null,null,null,null,null,null,null,null,null,null,null,"Relative value",{"$f":"IF(Q12>100%,102%,IF(Q12<0%,-2%,Q12))*1.506-0.253","v":-0.253},null,null,null,null,null,null,null,null,null,"Relative value",{"$f":"IF(AB12>100%,102%,IF(AB12<0%,-2%,AB12))*1.506-0.253","v":-0.253},null,null,null,null,null,null,null,null,null,"Relative value",{"$f":"IF(AM12>100%,102%,IF(AM12<0%,-2%,AM12))*1.506-0.253","v":-0.253}]
[]
["Angle",null,{"$f":"C13*PI()","v":-0.79482294135821763},null,null,null,null,null,null,null,null,null,null,null,"Angle",null,{"$f":"Q13*PI()","v":-0.79482294135821763},null,null,null,null,null,null,null,null,"Angle",null,{"$f":"AB13*PI()","v":-0.79482294135821763},null,null,null,null,null,null,null,null,"Angle",null,{"$f":"AM13*PI()","v":-0.79482294135821763}]
["x",0,{"$f":"-COS(C15)","v":-0.70041115078380645},null,null,null,null,null,null,null,null,null,null,null,"x",0,{"$f":"-COS(Q15)","v":-0.70041115078380645},null,null,null,null,null,null,null,null,"x",0,{"$f":"-COS(AB15)","v":-0.70041115078380645},null,null,null,null,null,null,null,null,"x",0,{"$f":"-COS(AM15)","v":-0.70041115078380645}]
["y",0,{"$f":"SIN(C15)","v":-0.7137396022764213},null,null,null,null,null,null,null,null,null,null,null,"y",0,{"$f":"SIN(Q15)","v":-0.7137396022764213},null,null,null,null,null,null,null,null,"y",0,{"$f":"SIN(AB15)","v":-0.7137396022764213},null,null,null,null,null,null,null,null,"y",0,{"$f":"SIN(AM15)","v":-0.7137396022764213}]
[]
[null,null,null,"Value","Label",null,null,null,null,null,null,null,null,null,null,null,null,"Value","Label",null,null,null,null,null,null,null,null,null,"Value","Label",null,null,null,null,null,null,null,null,null,"Value","Label"]
[null,null,70,10,{"$f":"B26+F3","v":4},null,null,null,null,null,null,null,null,null,null,null,70,10,{"$f":"P26+T3","v":4},null,null,null,null,null,null,null,null,70,10,{"$f":"AA26+AE3","v":4},null,null,null,null,null,null,null,null,70,10,{"$f":"AL26+AP3","v":4}]
[null,null,{"$f":"B7*$C$20/$B$25","v":3.5},10,{"$f":"E20+$B$26","v":8},null,null,null,null,null,null,null,null,null,null,null,{"$f":"P7*$C$20/$B$25","v":3.5},10,{"$f":"S20+$B$26","v":8},null,null,null,null,null,null,null,null,{"$f":"AA7*$AB$20/$AA$25","v":3.5},10,{"$f":"AD20+$AA$26","v":8},null,null,null,null,null,null,null,null,{"$f":"AL7*$AM$20/$AL$25","v":3.5},10,{"$f":"AO20+$AL$26","v":8}]
[null,null,{"$f":"B8*$C$20/$B$25","v":26.25},10,12,null,null,null,null,null,null,null,null,null,null,null,{"$f":"P8*$C$20/$B$25","v":26.25},10,12,null,null,null,null,null,null,null,null,{"$f":"AA8*$AB$20/$AA$25","v":26.25},10,12,null,null,null,null,null,null,null,null,{"$f":"AL8*$AM$20/$AL$25","v":26.25},10,{"$f":"AO21+$AL$26","v":12}]
[null,null,{"$f":"B9*$C$20/$B$25","v":40.25},10,16,null,null,null,null,null,null,null,null,null,null,null,{"$f":"P9*$C$20/$B$25","v":40.25},10,16,null,null,null,null,null,null,null,null,{"$f":"AA9*$AB$20/$AA$25","v":40.25},10,16,null,null,null,null,null,null,null,null,40.25,10,16]
["White",null,23,10,20,null,null,null,null,null,null,null,null,null,"White",null,23,10,20,null,null,null,null,null,null,"White",null,23,10,20,null,null,null,null,null,null,"White",null,23,10,20]
["Total",{"$f":"SUM(B7:B24)","v":40},{"$f":"SUM(C21:C24)","v":93},10,24,null,null,null,null,null,null,null,null,null,"Total",{"$f":"SUM(P7:P24)","v":40},{"$f":"SUM(Q21:Q24)","v":93},10,24,null,null,null,null,null,null,"Total",{"$f":"SUM(AA7:AA24)","v":40},{"$f":"SUM(AB21:AB24)","v":93},10,24,null,null,null,null,null,null,"Total",{"$f":"SUM(AL7:AL24)","v":40},{"$f":"SUM(AM21:AM24)","v":93},10,24]
["Increment",{"$f":"B25/10","v":4},null,10,28,null,null,null,null,null,null,null,null,null,"Increment",{"$f":"P25/10","v":4},null,10,28,null,null,null,null,null,null,"Increment",{"$f":"AA25/10","v":4},null,10,28,null,null,null,null,null,null,"Increment",{"$f":"AL25/10","v":4},null,10,28]
["Conversion",{"$f":"100/B25","v":2.5},null,10,32,null,null,null,null,null,null,null,null,null,"Conversion",{"$f":"100/P25","v":2.5},null,10,32,null,null,null,null,null,null,"Conversion",{"$f":"100/AA25","v":2.5},null,10,32,null,null,null,null,null,null,"Conversion",{"$f":"100/AL25","v":2.5},null,10,32]
[null,null,null,10,36,null,null,null,null,null,null,null,null,null,null,null,null,10,36,null,null,null,null,null,null,null,null,null,10,36,null,null,null,null,null,null,null,null,null,10,36]
[null,null,null,10,40,null,null,null,null,null,null,null,null,null,null,null,null,10,40,null,null,null,null,null,null,null,null,null,10,40,null,null,null,null,null,null,null,null,null,10,40]
[null,null,null,33,{"$f":"F3","v":0},null,null,null,null,null,null,null,null,null,null,null,null,33,{"$f":"T3","v":0},null,null,null,null,null,null,null,null,null,33,{"$f":"AE3","v":0},null,null,null,null,null,null,null,null,null,33,{"$f":"AP3","v":0}]

{"sheet":"pAccel1","index":4,"n_rows":35,"n_cols":64,"rows_kept":35,"cut":false,"hidden":true,"merged":[]}
["Gauge Configuration",null,null,null,null,null,null,null,null,null,null,null,null,null,null,null,"Gauge Configuration",null,null,null,null,null,null,"Gauge Configuration",null,null,null,null,null,null,"Gauge Configuration",null,null,null,null,null,null,"Gauge Configuration",null,null,null,null,null,null,"Gauge Configuration",null,null,null,null,null,null,"Gauge Configuration",null,null,null,null,null,null,"Gauge Configuration"]
[null,null,null,null,null,"Decal",null,null,null,null,null,null,null,null,null,null,null,null,null,null,null,"Decal",null,null,null,null,null,null,"Decal",null,null,null,null,null,null,"Decal",null,null,null,null,null,null,"Decal",null,null,null,null,null,null,"Decal",null,null,null,null,null,null,"Decal",null,null,null,null,null,null,"Decal"]
["Title:","CPDs",null,null,null,100,null,null,null,null,null,null,null,null,null,null,"Title:","Facturación",null,null,null,100,null,"Title:","CPDs",null,null,null,100,null,"Title:","Facturación",null,null,null,100,null,"Title:","Facturación",null,null,null,100,null,"Title:","Facturación",null,null,null,100,null,"Title:","Facturación",null,null,null,100,null,"Title:","Facturación",null,null,null,100]
["Real Value:",{"$f":"Dashboard!#REF!","v":{"$error":"#REF!"}},{"$f":"Dashboard!#REF!","v":{"$error":"#REF!"}},null,null,null,null,null,null,null,null,null,null,null,null,null,"Real Value:",{"$f":"Dashboard!#REF!","v":{"$error":"#REF!"}},null,null,null,null,null,"Real Value:",{"$f":"Dashboard!#REF!","v":{"$error":"#REF!"}},null,null,null,null,null,"Real Value:",{"$f":"Dashboard!#REF!","v":{"$error":"#REF!"}},null,null,null,null,null,"Real Value:",{"$f":"Dashboard!F8","v":0.1752888002705153},null,null,null,null,null,"Real Value:",{"$f":"Dashboard!$I$8","v":"n.a."},null,null,null,null,null,"Real Value:",{"$f":"Dashboard!ML31","v":0.15946136961790569},null,null,null,null,null,"Real Value:",{"$f":"Dashboard!ML30","v":{"$error":"#VALUE!"}}]
[]
["Color bands"]
["Red:",-50]
["Yellow:",0]
["Green:",50]
[]
["Advanced Parameters",null,null,null,null,null,null,null,null,null,null,null,null,null,null,null,"Advanced Parameters",null,null,null,null,null,null,"Advanced Parameters",null,null,null,null,null,null,"Advanced Parameters",null,null,null,null,null,null,"Advanced Parameters",null,null,null,null,null,null,"Advanced Parameters",null,null,null,null,null,null,"Advanced Parameters",null,null,null,null,null,null,"Advanced Parameters"]
[null,"Value to 100%",{"$f":"IF(ISERROR((B4-F3/100)*B27),0,(B4-F3/100)*B27)","v":0},null,{"$f":"IF(ISERROR((C4-F3/100)*B27),0,(C4-F3/100)*B27)","v":0},null,null,null,null,null,null,null,null,null,null,null,null,"Value to 100%",{"$f":"IF(ISERROR((R4-V3/100)*R27),0,(R4-V3/100)*R27)","v":0},null,null,null,null,null,"Value to 100%",{"$f":"IF(ISERROR((Y4-AC3/100)*Y27),0,(Y4-AC3/100)*Y27)","v":0},null,null,null,null,null,"Value to 100%",{"$f":"IF(ISERROR((AF4-AJ3/100)*AF27),0,(AF4-AJ3/100)*AF27)","v":0},null,null,null,null,null,"Value to 100%",{"$f":"IF(ISERROR((AM4-AQ3/100)*AM27),0,(AM4-AQ3/100)*AM27)","v":-1.6494223994589694},null,null,null,null,null,"Value to 100%",{"$f":"IF(ISERROR((AT4-AX3/100)*AT27),0,(AT4-AX3/100)*AT27)","v":0},null,null,null,null,null,"Value to 100%",{"$f":"IF(ISERROR((BA4-BE3/100)*BA27),0,(BA4-BE3/100)*BA27)","v":-1.6810772607641886},null,null,null,null,null,"Value to 100%",{"$f":"IF(ISERROR((BH4-BL3/100)*BH27),0,(BH4-BL3/100)*BH27)","v":0}]
[null,"Relative value",{"$f":"IF(B4<-100%,-100%,IF(B4>100%,100%,2*B4/1))","v":{"$error":"#REF!"}},"ojo1, todo en porcentaje, por 2, y con 1 al final en lugar de 100.",{"$f":"IF(C4<-100%,-100%,IF(C4>100%,100%,2*C4/1))","v":{"$error":"#REF!"}},null,null,null,"Todos los negritas tienen dato 50, en lugar de 100 para que la escala recorra menos. ",null,null,null,null,null,null,null,null,"Relative value",{"$f":"IF(R4<-100%,-100%,IF(R4>100%,100%,2*R4/1))","v":{"$error":"#REF!"}},null,null,null,null,null,"Relative value",{"$f":"IF(Y4<-100%,-100%,IF(Y4>100%,100%,2*Y4/1))","v":{"$error":"#REF!"}},null,null,null,null,null,"Relative value",{"$f":"IF(AF4<-100%,-100%,IF(AF4>100%,100%,2*AF4/1))","v":{"$error":"#REF!"}},null,null,null,null,null,"Relative value",{"$f":"IF(AM4<-100%,-100%,IF(AM4>100%,100%,2*AM4/1))","v":0.3505776005410306},null,null,null,null,null,"Relative value",{"$f":"IF(AT4<-100%,-100%,IF(AT4>100%,100%,2*AT4/1))","v":1},null,null,null,null,null,"Relative value",{"$f":"IF(BA4<-100%,-100%,IF(BA4>100%,100%,2*BA4/1))","v":0.31892273923581138},null,null,null,null,null,"Relative value",{"$f":"IF(BH4<-100%,-100%,IF(BH4>100%,100%,2*BH4/1))","v":{"$error":"#VALUE!"}}]
[]
["Angle",null,{"$f":"C13*PI()/2","v":{"$error":"#REF!"}},null,{"$f":"E13*PI()/2","v":{"$error":"#REF!"}},null,null,null,null,null,null,null,null,null,null,null,"Angle",null,{"$f":"S13*PI()/2","v":{"$error":"#REF!"}},null,null,null,null,"Angle",null,{"$f":"Z13*PI()/2","v":{"$error":"#REF!"}},null,null,null,null,"Angle",null,{"$f":"AG13*PI()/2","v":{"$error":"#REF!"}},null,null,null,null,"Angle",null,{"$f":"AN13*PI()/2","v":0.55068600718641936},null,null,null,null,"Angle",null,{"$f":"AU13*PI()/2","v":1.5707963267948966},null,null,null,null,"Angle",null,{"$f":"BB13*PI()/2","v":0.50096266732297912},null,null,null,null,"Angle",null,{"$f":"BI13*PI()/2","v":{"$error":"#VALUE!"}}]
["x",0,{"$f":"SIN(C15)","v":{"$error":"#REF!"}},{"$f":"B16","v":0},{"$f":"SIN(E15)","v":{"$error":"#REF!"}},null,null,null,null,null,null,null,null,null,null,null,"x",0,{"$f":"SIN(S15)","v":{"$error":"#REF!"}},null,null,null,null,"x",0,{"$f":"SIN(Z15)","v":{"$error":"#REF!"}},null,null,null,null,"x",0,{"$f":"SIN(AG15)","v":{"$error":"#REF!"}},null,null,null,null,"x",0,{"$f":"SIN(AN15)","v":0.5232719438436878},null,null,null,null,"x",0,{"$f":"SIN(AU15)","v":1},null,null,null,null,"x",0,{"$f":"SIN(BB15)","v":0.4802701363806568},null,null,null,null,"x",0,{"$f":"SIN(BI15)","v":{"$error":"#VALUE!"}}]
["y",0,{"$f":"-COS(C15)","v":{"$error":"#REF!"}},{"$f":"B17","v":0},{"$f":"-COS(E15)","v":{"$error":"#REF!"}},null,null,null,null,null,null,null,null,null,null,null,"y",0,{"$f":"-COS(S15)","v":{"$error":"#REF!"}},null,null,null,null,"y",0,{"$f":"-COS(Z15)","v":{"$error":"#REF!"}},null,null,null,null,"y",0,{"$f":"-COS(AG15)","v":{"$error":"#REF!"}},null,null,null,null,"y",0,{"$f":"-COS(AN15)","v":-0.85216575429082364},null,null,null,null,"y",0,{"$f":"-COS(AU15)","v":-6.1257422745431001E-17},null,null,null,null,"y",0,{"$f":"-COS(BB15)","v":-0.87712062802154267},null,null,null,null,"y",0,{"$f":"-COS(BI15)","v":{"$error":"#VALUE!"}}]
[]
[null,null,null,"Value","Label"]
[null,null,50,0,50]
[null,null,{"$f":"E21","v":40},{"$f":"D31/D33","v":5},{"$f":"E20+$B$26","v":40}]
[null,null,{"$f":"E22","v":30},{"$f":"D21","v":5},{"$f":"E21+$B$26","v":30}]
[null,null,20,{"$f":"D22","v":5},20]
["White",null,10,5,10,null,null,null,null,null,null,null,null,null,null,null,"White",null,null,null,null,null,null,"White",null,null,null,null,null,null,"White",null,null,null,null,null,null,"White",null,null,null,null,null,null,"White",null,null,null,null,null,null,"White",null,null,null,null,null,null,"White"]
["Total",50,0,5,0,null,null,null,null,null,null,null,null,null,null,null,"Total",50,null,null,null,null,null,"Total",50,null,null,null,null,null,"Total",50,null,null,null,null,null,"Total",50,null,null,null,null,null,"Total",50,null,null,null,null,null,"Total",50,null,null,null,null,null,"Total",50]
["Increment",-10,-10,5,-10,null,null,null,null,null,null,null,null,null,null,null,"Increment",-10,null,null,null,null,null,"Increment",-10,null,null,null,null,null,"Increment",-10,null,null,null,null,null,"Increment",-10,null,null,null,null,null,"Increment",-10,null,null,null,null,null,"Increment",-10,null,null,null,null,null,"Increment",-10]
["Conversion",{"$f":"100/B25","v":2},-20,5,-20,null,null,null,null,null,null,null,null,null,null,null,"Conversion",{"$f":"100/R25","v":2},null,null,null,null,null,"Conversion",{"$f":"100/Y25","v":2},null,null,null,null,null,"Conversion",{"$f":"100/AF25","v":2},null,null,null,null,null,"Conversion",{"$f":"100/AM25","v":2},null,null,null,null,null,"Conversion",{"$f":"100/AT25","v":2},null,null,null,null,null,"Conversion",{"$f":"100/BA25","v":2},null,null,null,null,null,"Conversion",{"$f":"100/BH25","v":2}]
[null,null,-30,5,-30]
[null,null,-40,5,-40]
[null,null,-50,5,-50]
[null,null,null,50]
[]
[null,null,null,10]
[]
[null,null,null,{"$f":"SUM(D20:D30)","v":50}]

{"sheet":"empresa_ccaa","index":5,"n_rows":153,"n_cols":14,"rows_kept":153,"cut":false,"hidden":false,"merged":[]}
[]
[]
[null,null,null,null,null,null,null,null,null,null,null,null,{"$f":"Dashboard!O3","v":2018}]
[null,null,null,null,null,null,null,null,null,null,null,null,{"$f":"Dashboard!O4","v":"FEBRERO"}]
[null,null,null,null,null,null,null,null,null,null,"Empresa",{"$f":"L9","v":"iEMPRESA"}]
[]
[]
[]
[null,null,"Facturación, €",null,null,"ASEMPLEO","ASEMPLEO",null,null,null,"Empresa = ","iEMPRESA"]
[null,null,"Dato acumulado a",null,{"$f":"M4","v":"FEBRERO"},{"$f":"Dashboard!D7","v":2017},{"$f":"Dashboard!E7","v":2018},null,null,"Facturación",{"$f":"F10","v":2017},{"$f":"G10","v":2018}]
[null,null,null,null,null,null,null,"Estructura (%)",null,"Datos acumulados ",null,null,"Estructura (%)","check"]
[null,null,null,null,null,{"$f":"E135","v":513947203.63970006},{"$f":"B135","v":604036392.36808932},{"$f":"G12/G$12","v":1},"TOTAL",null,{"$f":"SUM(K13:K29)","v":0},{"$f":"SUM(L13:L29)","v":0},{"$f":"L12/L$12","v":{"$error":"#DIV/0!"}},{"$f":"L12/K12-1","v":{"$error":"#DIV/0!"}}]
[null,null,null,null,null,46198442.654068381,53565309.593900397,{"$f":"G13/G$12","v":8.8678944299863685E-2},"ANDALUCIA",null,null,null,{"$f":"L13/L$12","v":{"$error":"#DIV/0!"}}]
[null,null,null,null,null,27072518.970105276,31027028.116750933,{"$f":"G14/G$12","v":5.1366156921624016E-2},"ARAGON",null,null,null,{"$f":"L14/L$12","v":{"$error":"#DIV/0!"}}]
[null,null,null,null,null,9915573.5644523874,12281317.775951065,2.0332082522052815E-2,"ASTURIAS",null,null,null,{"$error":"#DIV/0!"}]
[null,null,null,null,null,1661116.4989853087,1833000.8856896563,3.034586837563683E-3,"BALEARES",null,null,null,{"$error":"#DIV/0!"}]
[null,null,null,null,null,14112695.619959144,15144463.612136569,2.5072104600790006E-2,"CANARIAS",null,null,null,{"$error":"#DIV/0!"}]
[null,null,null,null,null,11215485.073114295,15130744.881031111,2.504939283825584E-2,"CANTABRIA",null,null,null,{"$error":"#DIV/0!"}]
[null,null,null,null,null,21820291.758781873,26893670.627058245,4.4523262119395134E-2,"CASTILLA-LA MANCHA",null,null,null,{"$error":"#DIV/0!"}]
[null,null,null,null,null,34605797.098203465,40543959.033067457,6.7121715753114208E-2,"CASTILLA Y LEÓN",null,null,null,{"$error":"#DIV/0!"}]
[null,null,null,null,null,125957443.51813532,157960177.2996963,0.26150771591827882,"CATALUÑA",null,null,null,{"$f":"L21/L$12","v":{"$error":"#DIV/0!"}}]
[null,null,null,null,null,39761725.8868718,41793268.504411399,6.9189984299726268E-2,"COMUNIDAD VALENCIANA",null,null,null,{"$error":"#DIV/0!"}]
[null,null,null,null,null,2196644.3514030534,3471905.5838622088,5.7478417322684916E-3,"EXTREMADURA",null,null,null,{"$error":"#DIV/0!"}]
[null,null,null,null,null,25612741.891437717,31982868.833288208,5.2948579319701657E-2,"GALICIA",null,null,null,{"$error":"#DIV/0!"}]
[null,null,null,null,null,84465514.612014592,93498479.601361305,0.15478948087019392,"MADRID",null,null,null,{"$error":"#DIV/0!"}]
[null,null,null,null,null,20416826.600383483,22977944.691181131,3.8040662750629055E-2,"MURCIA",null,null,null,{"$error":"#DIV/0!"}]
[null,null,null,null,null,16721171.956816871,21894635.446953058,3.6247212458700412E-2,"NAVARRA",null,null,null,{"$error":"#DIV/0!"}]
[null,null,null,null,null,27736766.163567007,29620806.90944089,4.9038116384534799E-2,"PAIS VASCO",null,null,null,{"$error":"#DIV/0!"}]
[null,null,null,null,null,4476447.4214001065,4416810.9723093472,7.312160373307142E-3,"RIOJA (LA)",null,null,null,{"$error":"#DIV/0!"}]
[]
["Fuente: Cifras consolidadas del sector. ASEMPLEO ©."]
["Nota de Confidencialidad: Este informe comparativo se genera con los datos propios de la Empresa. "]
[]
[]
[]
[]
[]
[]
[]
[]
[]
[]
[]
[]
[]
[]
[]
[]
[]
[]
[]
[]
[]
[]
[]
[]
[]
[]
[]
[]
[]
[]
[]
[]
[]
[]
[]
[]
[]
[]
[]
[]
[]
[]
[]
[]
[]
[]
[]
[]
[]
[]
[]
[]
[]
[]
[]
[]
[]
[]
[]
[]
[]
[]
[]
[]
[]
[]
[]
[]
[]
[]
[]
[]
[]
[]
[]
[]
[]
[]
[]
[]
[]
[]
[]
[]
[]
[]
[]
[]
[]
[]
[]
[]
[]
[]
[]
[]
[]
["D03: ",null,null,"D03: ",null,null,"D03 : ","Variación Interanual (%)"]
["MES:","ACUMULADO A LA FECHA",null,{"$f":"A131","v":"MES:"},{"$f":"B131","v":"ACUMULADO A LA FECHA"},null,{"$f":"D131","v":"MES:"},"Tasa % i.a."]
[]
[null,"Facturación",null,null,"Facturación",null,null,"Facturación"]
[null,null,null,null,null,null,null,null,"check"]
["TOTAL",604036392.36808932,null,"TOTAL",513947203.63970006,null,"TOTAL",0.1752888002705153,{"$f":"B135/E135-1","v":0.1752888002705153}]
["ANDALUCIA",53565309.593900397,null,"ANDALUCIA",46198442.654068381,null,"ANDALUCIA",0.15946136961790569,{"$f":"B136/E136-1","v":0.15946136961790569}]
["ARAGON",31027028.116750933,null,"ARAGON",27072518.970105276,null,"ARAGON",0.14607097149003412,0.14607097149003412]
["ASTURIAS",12281317.775951065,null,"ASTURIAS",9915573.5644523874,null,"ASTURIAS",0.23858874084500137,0.23858874084500137]
["BALEARES",1833000.8856896563,null,"BALEARES",1661116.4989853087,null,"BALEARES",0.10347521489874012,0.10347521489874012]
["CANARIAS",15144463.612136569,null,"CANARIAS",14112695.619959144,null,"CANARIAS",7.3109207479698401E-2,7.3109207479698401E-2]
["CANTABRIA",15130744.881031111,null,"CANTABRIA",11215485.073114295,null,"CANTABRIA",0.34909411250543743,0.34909411250543743]
["CASTILLA-LA MANCHA",26893670.627058245,null,"CASTILLA-LA MANCHA",21820291.758781873,null,"CASTILLA-LA MANCHA",0.23250738002779103,0.23250738002779103]
["CASTILLA Y LEÓN",40543959.033067457,null,"CASTILLA Y LEÓN",34605797.098203465,null,"CASTILLA Y LEÓN",0.17159442731553987,0.17159442731553987]
["CATALUÑA",157960177.2996963,null,"CATALUÑA",125957443.51813532,null,"CATALUÑA",0.25407576470026738,0.25407576470026738]
["COMUNIDAD VALENCIANA",41793268.504411399,null,"COMUNIDAD VALENCIANA",39761725.8868718,null,"COMUNIDAD VALENCIANA",5.1092918434165746E-2,5.1092918434165746E-2]
["EXTREMADURA",3471905.5838622088,null,"EXTREMADURA",2196644.3514030534,null,"EXTREMADURA",0.58054970602984191,0.58054970602984191]
["GALICIA",31982868.833288208,null,"GALICIA",25612741.891437717,null,"GALICIA",0.24870929355595517,0.24870929355595517]
["MADRID",93498479.601361305,null,"MADRID",84465514.612014592,null,"MADRID",0.10694263843461904,0.10694263843461904]
["MURCIA",22977944.691181131,null,"MURCIA",20416826.600383483,null,"MURCIA",0.12544153608815689,0.12544153608815689]
["NAVARRA",21894635.446953058,null,"NAVARRA",16721171.956816871,null,"NAVARRA",0.30939598632780485,0.30939598632780485]
["PAIS VASCO",29620806.90944089,null,"PAIS VASCO",27736766.163567007,null,"PAIS VASCO",6.7925753664413113E-2,6.7925753664413113E-2]
["RIOJA (LA)",4416810.9723093472,null,"RIOJA (LA)",4476447.4214001065,null,"RIOJA (LA)",-1.3322271765253246E-2,-1.3322271765253246E-2]
["Ceuta y Melilla",null,null,"Ceuta y Melilla",null,null,"Ceuta y Melilla"]